fUSD/lending_fUSD_20260217
["ID","MTS","AMOUNT","RATE_DAILY","PERIOD"]
[405804151,1771326639888,-1310.85,0.00013698,2]
[405804152,1771326639897,-1310.85,0.00013698,2]
[405804153,1771326639906,-1310.85,0.00013698,2]
[405804154,1771326639915,-1310.85,0.00013698,2]
[405804155,1771326639924,-1310.85,0.00013698,2]
[405804156,1771326639933,-456.05800986,0.00013698,2]
[405804157,1771326639945,-500.0,0.00013698,2]
[405804158,1771326639953,-500.0,0.00013698,2]
[405804159,1771326639962,-500.0,0.00013698,2]
[405804160,1771326639971,-500.0,0.00013698,2]
[405804161,1771326639982,-500.0,0.00013698,2]
[405804162,1771326639991,-500.0,0.00013698,2]
[405804163,1771326640000,-500.0,0.00013698,2]
[405804164,1771326640010,-500.0,0.00013698,2]
[405804165,1771326640019,-500.0,0.00013698,2]
[405804166,1771326640029,-500.0,0.00013698,2]
[405804167,1771326640038,-500.0,0.00013698,2]
[405804168,1771326640047,-465.55674509,0.00013698,2]
[405804169,1771326640057,-529.40507312,0.00013698,2]
[405804170,1771326640067,-500.0,0.00013698,2]
[405804171,1771326640075,-500.0,0.00013698,2]
[405804172,1771326640085,-500.0,0.00013698,2]
[405804173,1771326640094,-500.0,0.00013698,2]
[405804174,1771326640104,-500.0,0.00013698,2]
[405804175,1771326640113,-500.0,0.00013698,2]
[405804176,1771326640122,-500.0,0.00013698,2]
[405804177,1771326640131,-500.0,0.00013698,2]
[405804178,1771326640140,-500.0,0.00013698,2]
[405804179,1771326640149,-500.0,0.00013698,2]
[405804180,1771326640159,-500.0,0.00013698,2]
[405804181,1771326640169,-500.0,0.00013698,2]
[405804182,1771326640179,-500.0,0.00013698,2]
[405804183,1771326640188,-500.0,0.00013698,2]
[405804184,1771326640197,-500.0,0.00013698,2]
[405804185,1771326640206,-500.0,0.00013698,2]
[405804186,1771326640215,-506.17760418,0.00013698,2]
[405804187,1771326640225,-500.0,0.00013698,2]
[405804188,1771326640234,-500.0,0.00013698,2]
[405804189,1771326640244,-500.0,0.00013698,2]
[405804190,1771326640253,-500.0,0.00013698,2]
[405804191,1771326640263,-511.5660924,0.00013698,2]
[405804192,1771326640272,-915.21,0.00013698,2]
[405804193,1771326640282,-915.21,0.00013698,2]
[405804194,1771326640292,-915.21,0.00013698,2]
[405804195,1771326640301,-915.21,0.00013698,2]
[405804196,1771326640311,-915.21,0.00013698,2]
[405804197,1771326640321,-915.21,0.00013698,2]
[405804198,1771326640330,-915.21,0.00013698,2]
[405804199,1771326640340,-915.21,0.00013698,2]
[405804200,1771326640349,-500.0,0.00013698,2]
[405804201,1771326640358,-915.21,0.00013698,2]
[405804202,1771326640368,-915.21,0.00013698,2]
[405804203,1771326640377,-915.21,0.00013698,2]
[405804204,1771326640387,-915.21,0.00013698,2]
[405804205,1771326640397,-915.21,0.00013698,2]
[405804206,1771326640406,-915.21,0.00013698,2]
[405804207,1771326640415,-915.21,0.00013698,2]
[405804208,1771326640424,-915.21,0.00013698,2]
[405804209,1771326640434,-915.21,0.00013698,2]
[405804210,1771326640444,-915.21,0.00013698,2]
[405804211,1771326640453,-915.21,0.00013698,2]
[405804212,1771326640462,-500.0,0.00013698,2]
[405804213,1771326640472,-500.0,0.00013698,2]
[405804214,1771326640481,-500.0,0.00013698,2]
[405804215,1771326640491,-500.0,0.00013698,2]
[405804216,1771326640500,-500.0,0.00013698,2]
[405804217,1771326640510,-500.0,0.00013698,2]
[405804218,1771326640519,-500.0,0.00013698,2]
[405804219,1771326640529,-500.0,0.00013698,2]
[405804220,1771326640538,-500.0,0.00013698,2]
[405804221,1771326640547,-500.0,0.00013698,2]
[405804222,1771326640556,-500.0,0.00013698,2]
[405804223,1771326640565,-500.0,0.00013698,2]
[405804224,1771326640575,-500.0,0.00013698,2]
[405804225,1771326640584,-500.0,0.00013698,2]
[405804226,1771326640593,-500.0,0.00013698,2]
[405804227,1771326640602,-500.0,0.00013698,2]
[405804228,1771326640611,-500.0,0.00013698,2]
[405804229,1771326640620,-596.80603134,0.00013698,2]
[405804230,1771326640629,-500.0,0.00013698,2]
[405804231,1771326640638,-500.0,0.00013698,2]
[405804232,1771326640647,-500.0,0.00013698,2]
[405804233,1771326640656,-307.44205355,0.00013698,2]
[405804234,1771326640665,-500.0,0.00013698,2]
[405804235,1771326640675,-500.0,0.00013698,2]
[405804236,1771326640684,-500.0,0.00013698,2]
[405804237,1771326640693,-500.0,0.00013698,2]
[405804238,1771326640702,-500.0,0.00013698,2]
[405804239,1771326640711,-500.0,0.00013698,2]
[405804240,1771326640721,-500.0,0.00013698,2]
[405804241,1771326640731,-500.0,0.00013698,2]
[405804242,1771326640741,-500.0,0.00013698,2]
[405804243,1771326640750,-500.0,0.00013698,2]
[405804244,1771326640760,-500.0,0.00013698,2]
[405804245,1771326640769,-500.0,0.00013698,2]
[405804246,1771326640779,-500.0,0.00013698,2]
[405804247,1771326640789,-500.0,0.00013698,2]
[405804248,1771326640798,-500.0,0.00013698,2]
[405804249,1771326640808,-500.0,0.00013698,2]
[405804250,1771326640818,-500.0,0.00013698,2]
[405804251,1771326640827,-286.9609652,0.00013698,2]
[405804252,1771326640836,-500.0,0.00013698,2]
[405804253,1771326640846,-500.0,0.00013698,2]
[405804254,1771326640856,-500.0,0.00013698,2]
[405804255,1771326640865,-500.0,0.00013698,2]
[405804256,1771326640875,-500.0,0.00013698,2]
[405804257,1771326640884,-500.0,0.00013698,2]
[405804258,1771326640894,-500.0,0.00013698,2]
[405804259,1771326640903,-277.8358357,0.00013698,2]
[405804260,1771326640913,-500.0,0.00013698,2]
[405804261,1771326640922,-500.0,0.00013698,2]
[405804262,1771326640933,-500.0,0.00013698,2]
[405804263,1771326640944,-500.0,0.00013698,2]
[405804264,1771326640954,-500.0,0.00013698,2]
[405804265,1771326640963,-500.0,0.00013698,2]
[405804266,1771326640975,-500.0,0.00013698,2]
[405804267,1771326640984,-500.0,0.00013698,2]
[405804268,1771326640994,-500.0,0.00013698,2]
[405804269,1771326641005,-500.0,0.00013698,2]
[405804270,1771326641016,-500.0,0.00013698,2]
[405804271,1771326641026,-500.0,0.00013698,2]
[405804272,1771326641036,-500.0,0.00013698,2]
[405804273,1771326641045,-500.0,0.00013698,2]
[405804274,1771326641056,-500.0,0.00013698,2]
[405804275,1771326641065,-500.0,0.00013698,2]
[405804276,1771326641075,-161.76553767,0.00013698,2]
[405804277,1771326641085,-500.0,0.00013698,2]
[405804278,1771326641094,-500.0,0.00013698,2]
[405804279,1771326641104,-500.0,0.00013698,2]
[405804280,1771326641113,-500.0,0.00013698,2]
[405804281,1771326641122,-500.0,0.00013698,2]
[405804282,1771326641133,-500.0,0.00013698,2]
[405804283,1771326641143,-500.0,0.00013698,2]
[405804284,1771326641152,-500.0,0.00013698,2]
[405804285,1771326641162,-500.0,0.00013698,2]
[405804286,1771326641172,-500.0,0.00013698,2]
[405804287,1771326641182,-500.0,0.00013698,2]
[405804288,1771326641192,-500.0,0.00013698,2]
[405804289,1771326641202,-500.0,0.00013698,2]
[405804290,1771326641211,-500.0,0.00013698,2]
[405804291,1771326641221,-156.33002301,0.00013698,2]
[405804292,1771326641231,-500.0,0.00013698,2]
[405804293,1771326641241,-500.0,0.00013698,2]
[405804294,1771326641250,-400.27334963,0.00013698,2]
[405804295,1771326641261,-932.19,0.00013698,2]
[405804296,1771326641270,-932.19,0.00013698,2]
[405804297,1771326641281,-932.19,0.00013698,2]
[405804298,1771326641291,-932.19,0.00013698,2]
[405804299,1771326641301,-932.19,0.00013698,2]
[405804300,1771326641311,-932.19,0.00013698,2]
[405804301,1771326641320,-932.19,0.00013698,2]
[405804302,1771326641330,-932.19,0.00013698,2]
[405804303,1771326641340,-932.19,0.00013698,2]
[405804304,1771326641350,-932.19,0.00013698,2]
[405804305,1771326641360,-932.19,0.00013698,2]
[405804306,1771326641370,-932.19,0.00013698,2]
[405804307,1771326641379,-932.19,0.00013698,2]
[405804308,1771326641389,-932.19,0.00013698,2]
[405804309,1771326641400,-932.19,0.00013698,2]
[405804310,1771326641410,-932.19,0.00013698,2]
[405804311,1771326641420,-932.19,0.00013698,2]
[405804312,1771326641430,-932.19,0.00013698,2]
[405804313,1771326641441,-500.0,0.00013698,2]
[405804314,1771326641451,-500.0,0.00013698,2]
[405804315,1771326641461,-500.0,0.00013698,2]
[405804316,1771326641472,-500.0,0.00013698,2]
[405804317,1771326641483,-500.0,0.00013698,2]
[405804318,1771326641493,-500.0,0.00013698,2]
[405804319,1771326641503,-500.0,0.00013698,2]
[405804320,1771326641513,-500.0,0.00013698,2]
[405804321,1771326641527,-500.0,0.00013698,2]
[405804322,1771326641548,-500.0,0.00013698,2]
[405804323,1771326641569,-500.0,0.00013698,2]
[405804324,1771326641579,-500.0,0.00013698,2]
[405804325,1771326641589,-500.0,0.00013698,2]
[405804326,1771326641599,-500.0,0.00013698,2]
[405804327,1771326641609,-500.0,0.00013698,2]
[405804328,1771326641619,-500.0,0.00013698,2]
[405804329,1771326641629,-500.0,0.00013698,2]
[405804330,1771326641639,-500.0,0.00013698,2]
[405804331,1771326641649,-500.0,0.00013698,2]
[405804332,1771326641658,-500.0,0.00013698,2]
[405804333,1771326641668,-500.0,0.00013698,2]
[405804334,1771326641678,-500.0,0.00013698,2]
[405804335,1771326641688,-500.0,0.00013698,2]
[405804336,1771326641698,-500.0,0.00013698,2]
[405804337,1771326641708,-500.0,0.00013698,2]
[405804338,1771326641718,-500.0,0.00013698,2]
[405804339,1771326641728,-500.0,0.00013698,2]
[405804340,1771326641738,-500.0,0.00013698,2]
[405804341,1771326641748,-500.0,0.00013698,2]
[405804342,1771326641758,-500.0,0.00013698,2]
[405804343,1771326641767,-500.0,0.00013698,2]
[405804344,1771326641776,-500.0,0.00013698,2]
[405804345,1771326641786,-500.0,0.00013698,2]
[405804346,1771326641796,-500.0,0.00013698,2]
[405804347,1771326641806,-500.0,0.00013698,2]
[405804348,1771326641815,-500.0,0.00013698,2]
[405804349,1771326641825,-500.0,0.00013698,2]
[405804350,1771326641835,-500.0,0.00013698,2]
[405804351,1771326641844,-500.0,0.00013699,2]
[405804352,1771326641854,-702.05,0.000137,2]
[405804353,1771326641863,-702.05,0.000137,2]
[405804354,1771326641873,-510.58,0.000137,2]
[405804355,1771326641883,-510.58,0.000137,2]
[405804356,1771326641894,-510.58,0.000137,2]
[405804357,1771326641903,-510.58,0.000137,2]
[405804358,1771326641913,-510.58,0.000137,2]
[405804359,1771326641923,-510.58,0.000137,2]
[405804360,1771326641933,-510.58,0.000137,2]
[405804361,1771326641945,-510.58,0.000137,2]
[405804362,1771326641955,-510.58,0.000137,2]
[405804363,1771326641966,-510.58,0.000137,2]
[405804364,1771326641976,-510.6,0.000137,2]
[405804365,1771326641986,-734.64,0.00013936,2]
[405804366,1771326641995,-127.57360017,0.00013936,2]
[405804367,1771326642014,-607.06639983,0.00013936,2]
[405804368,1771326642030,-647.35168694,0.00013936,2]
[405804369,1771326642042,-87.28831306,0.00013936,2]
[405804370,1771326642052,-734.64,0.00013936,2]
[405804371,1771326642062,-63.73168694,0.00013936,2]
[405804372,1771326642669,-671.03450501,0.00013936,2]
[405804373,1771326642679,-1310.85,0.00013936,2]
[405804374,1771326642690,-1310.85,0.00013936,2]
[405804375,1771326642700,-1310.85,0.00013936,2]
[405804376,1771326642710,-1310.85,0.00013936,2]
[405804377,1771326642719,-1311.03343843,0.00013936,2]
[405804379,1771326642729,-325.66480715,0.00013973,2]
[405804380,1771326642738,-799.86510046,0.00014067,2]
[405804381,1771326642749,-46.45028724,0.00014067,2]
[405804382,1771326642760,-241.70774661,0.00014292,2]
[405804383,1771326642770,-337.87,0.00014295,2]
[405804384,1771326642782,-151.0,0.00014463,2]
[405804385,1771326642792,-11158.09112263,0.00014466,2]
[405804386,1771326642806,-6103.65377534,0.00014466,2]
[405804387,1771326642826,-563.94852852,0.00014466,2]
[405804388,1771326642838,-252.9257169,0.00014466,2]
[405804389,1771326642853,-875.29292091,0.00014466,2]
[405804390,1771326642865,-8052.99277437,0.00014466,2]
[405804391,1771326642877,-730.79056686,0.00014466,2]
[405804392,1771326642887,-500.0,0.00014532,2]
[405804393,1771326642898,-500.0,0.00014532,2]
[405804394,1771326642908,-500.0,0.00014532,2]
[405804395,1771326642917,-14.30546895,0.00014532,2]
[405804396,1771326642929,-348.01441186,0.00014532,2]
[405804398,1771326642945,-137.68011919,0.00014532,2]
[405804399,1771326642955,-500.0,0.00014532,2]
[405804400,1771326642964,-500.0,0.00014532,2]
[405804401,1771326642975,-500.0,0.00014532,2]
[405804402,1771326642984,-500.0,0.00014532,2]
[405804403,1771326642994,-500.0,0.00014532,2]
[405804405,1771326643004,-500.0,0.00014532,2]
[405804407,1771326643015,-500.0,0.00014532,2]
[405804408,1771326643024,-500.0,0.00014532,2]
[405804409,1771326643034,-500.0,0.00014532,2]
[405804410,1771326643044,-500.0,0.00014532,2]
[405804411,1771326643053,-500.0,0.00014532,2]
[405804412,1771326643063,-500.0,0.00014532,2]
[405804413,1771326643072,-500.0,0.00014532,2]
[405804414,1771326643082,-500.0,0.00014532,2]
[405804415,1771326643091,-500.0,0.00014532,2]
[405804416,1771326643101,-500.0,0.00014532,2]
[405804417,1771326643111,-291.48891739,0.00014532,2]
[405804418,1771326643121,-932.19,0.00014547,2]
[405804419,1771326643130,-500.0,0.00014547,2]
[405804420,1771326643140,-8685.08379471,0.00014575,2]
[405804421,1771326643149,-151.0,0.00014634,2]
[405804422,1771326643159,-151.0,0.00014634,2]
[405804423,1771326643169,-151.0,0.00014634,2]
[405804424,1771326643178,-393.22051508,0.00014709,2]
[405804425,1771326643187,-12649.0,0.00014802,2]
[405804426,1771326643197,-306.51422453,0.00015,2]
[405804427,1771326643207,-776.66,0.00015068,2]
[405804428,1771326643216,-3070.717057,0.000152,7]
[405804429,1771326643225,-3175.017131,0.00015215,7]
[405804430,1771326643235,-832.04,0.00015342,2]
[405804431,1771326643245,-8685.08379471,0.0001546,2]
[405804432,1771326643254,-391.49,0.00015465,2]
[405804433,1771326643263,-27870.63627,0.00015498,7]
[405804434,1771326643273,-359.232122,0.00015538,7]
[405804435,1771326643284,-27737.69540553,0.00015611,2]
[405804436,1771326643294,-1576.69293966,0.00015749,2]
[405804437,1771326643304,-484.11558281,0.00015827,2]
[405804438,1771326643314,-5000.0,0.0001596,2]
[405804439,1771326643323,-152.85835457,0.00016,2]
[405804440,1771326643334,-276.734435,0.00016,2]
[405804446,1771326643574,-7910.85072983,0.00016204,2]
[405804448,1771326643585,-484.11558281,0.00016223,2]
[405804450,1771326643595,-11348.0,0.00016282,2]
[405804451,1771326643605,-393.22051508,0.00016305,2]
[405804452,1771326643614,-1000.0,0.00016368,2]
[405804453,1771326643623,-1000.0,0.00016368,2]
[405804454,1771326643633,-1000.0,0.00016368,2]
[405804455,1771326643643,-1000.0,0.00016368,2]
[405804456,1771326643652,-1000.0,0.00016368,2]
[405804457,1771326643661,-1000.0,0.00016368,2]
[405804458,1771326643671,-1000.0,0.00016368,2]
[405804459,1771326643680,-1000.0,0.00016368,2]
[405804461,1771326643690,-1000.0,0.00016368,2]
[405804462,1771326643700,-1000.0,0.00016368,2]
[405804463,1771326643719,-1000.0,0.00016368,2]
[405804464,1771326643728,-506.851,0.00016368,2]
[405804465,1771326643737,-1341.839,0.00016399,2]
[405804466,1771326643747,-1164.0,0.00016399,2]
[405804467,1771326643756,-619.543,0.00016399,2]
[405804468,1771326643765,-1302.253,0.00016399,2]
[405804469,1771326643775,-150.248,0.00016399,2]
[405804470,1771326643785,-1224.627,0.00016408,2]
[405804471,1771326643794,-919.0,0.00016408,2]
[405804472,1771326643804,-5973.0,0.00016408,2]
[405804473,1771326643813,-15296.93137855,0.00016439,2]
[405804474,1771326643823,-7910.85072979,0.00016543,2]
[405804475,1771326643832,-915.21,0.00016686,2]
[405804476,1771326643841,-915.21,0.00016686,2]
[405804477,1771326643851,-915.21,0.00016686,2]
[405804478,1771326643860,-915.21,0.00016686,2]
[405804479,1771326643870,-915.2263384,0.00016686,2]
[405804480,1771326643879,-9917.64356668,0.00016687,2]
[405804481,1771326643889,-159.42,0.00016712,2]
[405804482,1771326643899,-27737.69540553,0.00016755,2]
[405804483,1771326643909,-173.57638878,0.00017,7]
[405804484,1771326643918,-150.0,0.00017449,2]
[405804485,1771326643927,-200.0,0.00017449,2]
[405804486,1771326643937,-231.713,0.00017449,2]
[405804487,1771326643950,-250.0,0.00017449,2]
[405804488,1771326643959,-275.559,0.00017449,2]
[405804489,1771326643969,-160.03,0.00017449,2]
[405804490,1771326643979,-250.0,0.00017449,2]
[405804491,1771326643991,-192.151,0.00017449,2]
[405804492,1771326644001,-213.324,0.00017449,2]
[405804493,1771326644011,-250.0,0.00017449,2]
[405804495,1771326644023,-174.0,0.00017449,2]
[405804497,1771326644033,-234.143,0.00017449,2]
[405804499,1771326644043,-150.0,0.00017452,2]
[405804500,1771326644051,-500.0,0.00017452,2]
[405804501,1771326644061,-150.0,0.00017452,2]
[405804502,1771326644070,-500.0,0.00017452,2]
[405804503,1771326644080,-150.0,0.00017452,2]
[405804504,1771326644089,-150.0,0.00017452,2]
[405804505,1771326644098,-150.0,0.00017452,2]
[405804506,1771326644108,-500.0,0.00017452,2]
[405804507,1771326644117,-500.0,0.00017452,2]
[405804508,1771326644127,-500.0,0.00017452,2]
[405804509,1771326644137,-150.0,0.00017452,2]
[405804510,1771326644146,-150.0,0.00017452,2]
[405804511,1771326644155,-3701.0,0.000175,2]
[405804512,1771326644165,-150.0,0.00017507,2]
[405804513,1771326644174,-500.0,0.00017507,2]
[405804514,1771326644183,-150.37957529,0.00017507,2]
[405804515,1771326644192,-500.0,0.00017507,2]
[405804516,1771326644201,-244.28993987,0.00017507,2]
[405804517,1771326644210,-150.0,0.00017507,2]
[405804518,1771326644220,-150.0,0.00017507,2]
[405804519,1771326644229,-500.0,0.00017507,2]
[405804520,1771326644238,-649.65624143,0.00017507,2]
[405804521,1771326644247,-150.0,0.00017507,2]
[405804522,1771326644258,-205.12968692,0.00017507,2]
[405804523,1771326644267,-500.0,0.00017507,2]
[405804524,1771326644276,-350.0,0.0001753,2]
[405804525,1771326644286,-150.0,0.00017562,2]
[405804526,1771326644296,-500.0,0.00017562,2]
[405804527,1771326644306,-500.0,0.00017562,2]
[405804528,1771326644317,-150.0,0.00017562,2]
[405804529,1771326644335,-200.36674187,0.00017562,2]
[405804530,1771326644345,-500.0,0.00017562,2]
[405804531,1771326644355,-200.18645604,0.00017562,2]
[405804532,1771326644364,-152.12850518,0.00017562,2]
[405804533,1771326644374,-350.0,0.00017575,2]
[405804534,1771326644383,-250.53819001,0.00017616,2]
[405804535,1771326644392,-500.0,0.00017616,2]
[405804536,1771326644402,-500.0,0.00017616,2]
[405804537,1771326644411,-200.89245722,0.00017616,2]
[405804538,1771326644421,-500.0,0.00017616,2]
[405804539,1771326644431,-1113.54233193,0.0001764,2]
[405804540,1771326644440,-1071.29129261,0.0001764,2]
[405804541,1771326644450,-1110.6785255,0.0001764,2]
[405804542,1771326644459,-1125.22646344,0.0001764,2]
[405804543,1771326644468,-1121.8873235,0.0001764,2]
[405804544,1771326644478,-1104.18347203,0.0001764,2]
[405804545,1771326644488,-1032.43510646,0.0001764,2]
[405804546,1771326644498,-1050.9103361,0.0001764,2]
[405804547,1771326644507,-1071.04608185,0.0001764,2]
[405804548,1771326644517,-1090.69571173,0.0001764,2]
[405804549,1771326644526,-1076.88568301,0.0001764,2]
[405804550,1771326644536,-1095.16838184,0.0001764,2]
[405804551,1771326644545,-1029.51373452,0.0001764,2]
[405804552,1771326644555,-1005.94568293,0.0001764,2]
[405804553,1771326644565,-1065.94338226,0.0001764,2]
[405804554,1771326644575,-1090.06476258,0.0001764,2]
[405804555,1771326644584,-1077.85321602,0.0001764,2]
[405804556,1771326644593,-1030.15854291,0.0001764,2]
[405804557,1771326644603,-6001.36620396,0.0001764,2]
[405804558,1771326644613,-1088.94777079,0.0001764,2]
[405804559,1771326644621,-1016.63395366,0.0001764,2]
[405804560,1771326644631,-1038.75965553,0.0001764,2]
[405804561,1771326644640,-1330.79468078,0.0001764,2]
[405804562,1771326644650,-153.2248447,0.00017671,2]
[405804563,1771326644660,-500.0,0.00017671,2]
[405804564,1771326644669,-500.0,0.00017671,2]
[405804565,1771326644679,-932.19,0.00017725,2]
[405804566,1771326644688,-932.19,0.00017725,2]
[405804567,1771326644698,-932.19,0.00017725,2]
[405804568,1771326644707,-932.19,0.00017725,2]
[405804569,1771326644719,-932.3274779,0.00017725,2]
[405804570,1771326644730,-197.6651859,0.00017725,2]
[405804571,1771326644739,-500.0,0.00017726,2]
[405804572,1771326644750,-500.0,0.00017726,2]
[405804573,1771326644759,-2004.41635969,0.0001773,2]
[405804574,1771326644769,-630.25617345,0.00017781,2]
[405804575,1771326644780,-382.17209928,0.00017781,2]
[405804576,1771326644792,-444.64,0.00017808,2]
[405804577,1771326644802,-800.0,0.00017808,2]
[405804578,1771326644812,-250.0,0.00017808,20]
[405804579,1771326644822,-250.0,0.00017808,20]
[405804580,1771326644832,-250.0,0.00017808,20]
[405804581,1771326644842,-250.0,0.00017808,20]
[405804582,1771326644852,-250.0,0.00017808,20]
[405804583,1771326644862,-250.0,0.00017808,20]
[405804584,1771326644872,-250.0,0.00017808,20]
[405804585,1771326644882,-250.0,0.00017808,20]
[405804586,1771326644891,-250.0,0.00017808,20]
[405804587,1771326644901,-250.0,0.00017808,20]
[405804588,1771326644911,-250.0,0.00017808,20]
[405804589,1771326644921,-250.0,0.00017808,20]
[405804590,1771326644932,-250.0,0.00017808,20]
[405804591,1771326644944,-250.0,0.00017808,20]
[405804592,1771326644954,-250.0,0.00017808,20]
[405804593,1771326644964,-211.316222,0.00017808,20]
[405804594,1771326644974,-2000.0,0.0001782,2]
[405804595,1771326644985,-2000.0,0.0001782,2]
[405804596,1771326644995,-350.0,0.00017821,2]
[405804597,1771326645005,-350.0,0.00017822,2]
[405804598,1771326645017,-500.0,0.00017855,2]
[405804599,1771326645027,-200.0,0.00017855,2]
[405804600,1771326645038,-500.0,0.00017856,2]
[405804601,1771326645047,-500.0,0.00017856,2]
[405804602,1771326645057,-200.0,0.00017856,2]
[405804603,1771326645071,-200.0,0.00017856,2]
[405804604,1771326645080,-260.99,0.00017865,2]
[405804605,1771326645089,-300.0,0.00017898,2]
[405804606,1771326645099,-300.0,0.00017898,2]
[405804607,1771326645108,-666.0,0.00017898,2]
[405804608,1771326645118,-200.0,0.00017899,3]
[405804609,1771326645127,-200.0,0.00017899,3]
[405804610,1771326645136,-200.0,0.00017899,3]
[405804611,1771326645146,-578.20924308,0.00017899,3]
[405804612,1771326645155,-200.0,0.00017899,3]
[405804613,1771326645165,-599.60298507,0.00017899,3]
[405804614,1771326645175,-200.0,0.00017899,3]
[405804615,1771326645185,-621.78829552,0.00017899,3]
[405804616,1771326645194,-200.0,0.00017899,3]
[405804617,1771326645203,-415.5066665,0.00017899,3]
[405804618,1771326645213,-201.77822118,0.00017899,3]
[405804619,1771326645223,-9552.16786547,0.00017899,3]
[405804620,1771326645233,-9905.5980765,0.00017899,3]
[405804621,1771326645242,-10272.10520533,0.00017899,3]
[405804622,1771326645251,-1428.38747117,0.00017899,3]
[405804623,1771326645261,-250.0,0.00017899,3]
[405804624,1771326645270,-2125.36664557,0.00017899,3]
[405804625,1771326645280,-527.32864652,0.00017899,3]
[405804626,1771326645290,-250.0,0.00017899,3]
[405804627,1771326645299,-500.0,0.00017899,3]
[405804628,1771326645309,-250.0,0.00017899,3]
[405804629,1771326645319,-250.0,0.00017899,3]
[405804630,1771326645328,-250.0,0.00017899,3]
[405804631,1771326645338,-500.0,0.00017899,3]
[405804632,1771326645348,-250.0,0.00017899,3]
[405804633,1771326645358,-250.0,0.00017899,3]
[405804634,1771326645367,-250.0,0.00017899,3]
[405804635,1771326645377,-250.0,0.00017899,3]
[405804636,1771326645388,-279.55615727,0.00017899,3]
[405804637,1771326645398,-151.0,0.00017899,3]
[405804638,1771326645407,-162.380719,0.00017899,3]
[405804639,1771326645417,-250.0,0.00017899,3]
[405804640,1771326645427,-168.3888056,0.00017899,3]
[405804641,1771326645437,-151.0,0.00017899,3]
[405804642,1771326645447,-500.0,0.00017899,3]
[405804643,1771326645456,-250.0,0.00017899,3]
[405804644,1771326645466,-168.19115038,0.00017899,3]
[405804645,1771326645475,-151.0,0.00017899,3]
[405804646,1771326645485,-500.0,0.00017899,3]
[405804647,1771326645495,-250.0,0.00017899,3]
[405804648,1771326645505,-500.0,0.00017899,3]
[405804649,1771326645515,-250.0,0.00017899,3]
[405804650,1771326645524,-151.0,0.00017899,3]
[405804651,1771326645534,-151.12957794,0.00017899,3]
[405804652,1771326645544,-500.0,0.00017899,3]
[405804653,1771326645554,-250.0,0.00017899,3]
[405804654,1771326645564,-151.0,0.00017899,3]
[405804655,1771326645574,-500.0,0.00017899,3]
[405804656,1771326645583,-250.0,0.00017899,3]
[405804657,1771326645593,-151.0,0.00017899,3]
[405804658,1771326645603,-200.0,0.00017899,3]
[405804659,1771326645612,-250.0,0.00017899,3]
[405804660,1771326645622,-1000.0,0.00017899,3]
[405804661,1771326645631,-500.0,0.00017899,3]
[405804662,1771326645640,-3000.0,0.00017899,3]
[405804663,1771326645649,-151.0,0.00017899,3]
[405804664,1771326645659,-200.0,0.00017899,3]
[405804665,1771326645668,-250.0,0.00017899,3]